Cogmind - Beta 16 @@@ ROGUE MODE // 2025.11.09 @ 19:14:31 Player: FrigidRock Result: Destroyed by Striker with Compact Linear Accelerator Performance ------------- Evolutions (6) 3000 Regions Visited (16) 3200 Robots Destroyed (113) 565 Value Destroyed (4310) 4310 Prototype IDs (34) 680 Alien Tech Used (1) 200 Bonus (1280) 1280 TOTAL SCORE: 13235 Bonus ------- High Alert Combat Kills 105 Follower Combat Kills 35 Met Zhirov 300 Met Warlord at Base 500 MAIN.C Attacked Warlord 500 Friendly Fire -160 Cogmind --------- Core Integrity 0/1150 Matter 295/300 Energy 99/100 System Corruption 0% Temperature Cool (9) Movement Core (50) Location -4/Warlord Parts ------- > --- POWER (2) -------- (None) > --- PROPULSION (7) --- (None) > --- UTILITY (8) ------ (None) > --- WEAPON (2) ------- (None) > --- INVENTORY (5) ---- Experimental Matter Compressor (3) Transdimensional Reconstructor Vortex Rifle (35) Vortex Shotgun (50) Heavy Gauss Cannon Peak State ------------ > --- POWER ------------ Vortex Chain Reactor > --- PROPULSION ------- Heavy Siege Treads Heavy Siege Treads Myomer Leg Biometal Leg Enhanced Biometal Leg > --- UTILITY ---------- Advanced Coolant Injector Large Storage Unit Improved Targeting Computer Armor Integrity Analyzer Improved Transmission Jammer Hardened Medium Armor Plating Improved Medium Armor Plating Advanced Remote Shield > --- WEAPON ----------- Heavy Tesla Rifle Vortex Shotgun > --- INVENTORY -------- Enhanced Biometal Leg Experimental Matter Compressor Wardrone Bay Transdimensional Reconstructor Vortex Rifle Vortex Rifle Vortex Shotgun Heavy Gauss Cannon [Rating: 141] Favorites ----------- Power Light Antimatter Reactor Engine Cooled Deuterium Engine Power Core Light Nuclear Core Reactor Light Antimatter Reactor Propulsion Gravmag System Treads Heavy Siege Treads Leg Flexi-carbon Leg Hover Unit Gravmag System Flight Unit Improved VTOL Module Utility Large Storage Unit Device Structural Scanner Storage Large Storage Unit Processor Improved Signal Interpreter Hackware Advanced System Shield Protection Improved Medium Armor Plating Weapon Heavy Tesla Rifle Energy Gun Heavy Tesla Rifle Energy Cannon Improved EM Pulse Cannon Ballistic Gun Assault Rifle Ballistic Cannon Enhanced Gauss Cannon Launcher Thermoblaster Slashing Weapon Chainsword Piercing Weapon Spear Build | -11 -10 -10 -10 -8 -7 -7 -7 -5 -5 -5 -5 -4 -4 -4 -4 -4 ------- Run | Yrd Mat Min Sub Mat Fac Sto Rec Fac Upp Upp Zhi Pro Fac Upp Upp War Slots Evolved 12 | . . . . 4 2 . . 4 . . . . 2 . . . Power 1 | . . . . . . . . 1 . . . . . . . . Propulsion 5 | . . . . 2 1 . . 1 . . . . 1 . . . Utility 6 | . . . . 2 1 . . 2 . . . . 1 . . . Weapon . | . . . . . . . . . . . . . . . . . Parts Attached 145 | 6 . 4 . 51 11 7 1 7 . . 2 3 28 8 3 14 Power 19 | 1 . 2 . 7 2 1 . 1 . . 1 . 2 1 . 1 Engine 7 | 1 . 1 . 4 1 . . . . . . . . . . . Core 7 | . . 1 . 3 1 1 . 1 . . . . . . . . Reactor 5 | . . . . . . . . . . . 1 . 2 1 . 1 Propulsion 50 | 2 . 1 . 18 2 2 . 2 . . . 1 13 2 . 7 Treads 5 | . . . . . . . . . . . . . 3 2 . . Leg 31 | 2 . 1 . 12 . . . . . . . . 9 . . 7 Wheel . | . . . . . . . . . . . . . . . . . Hover 12 | . . . . 5 2 1 . 2 . . . 1 1 . . . Flight 2 | . . . . 1 . 1 . . . . . . . . . . Utility 46 | 1 . 1 . 12 5 2 1 4 . . 1 . 10 3 3 3 Device 16 | . . 1 . 4 1 . 1 1 . . . . 5 1 1 1 Storage 9 | 1 . . . 4 2 . . . . . . . . 1 . 1 Processor 10 | . . . . 1 2 . . 3 . . . . 2 . 1 1 Hackware 1 | . . . . . . . . . . . . . 1 . . . Protection 10 | . . . . 3 . 2 . . . . 1 . 2 1 1 . Artifact . | . . . . . . . . . . . . . . . . . Weapon 30 | 2 . . . 14 2 2 . . . . . 2 3 2 . 3 Energy Gun 7 | . . . . 2 1 . . . . . . . 1 1 . 2 Energy Cannon 2 | . . . . 2 . . . . . . . . . . . . Ballistic Gun 3 | 2 . . . 1 . . . . . . . . . . . . Ballistic Cannon 11 | . . . . 6 . . . . . . . 2 2 1 . . Launcher 3 | . . . . . . 2 . . . . . . . . . 1 Special Weapon . | . . . . . . . . . . . . . . . . . Impact Weapon . | . . . . . . . . . . . . . . . . . Slashing Weapon 2 | . . . . 1 1 . . . . . . . . . . . Piercing Weapon 2 | . . . . 2 . . . . . . . . . . . . Special Melee Weapon . | . . . . . . . . . . . . . . . . . Unidentified Prototypes 22 | . . . . 4 3 4 1 . . . 3 . 1 . . 6 Parts Lost 45 | . . 1 . 15 . . . . . . . 5 17 3 2 2 Power 8 | . . 1 . 4 . . . . . . . . 3 . . . Propulsion 21 | . . . . 7 . . . . . . . 4 8 1 . 1 Utility 14 | . . . . 2 . . . . . . . 1 6 2 2 1 Weapon 2 | . . . . 2 . . . . . . . . . . . . Highest Loss Streak 8 | . . 1 . 6 . . . . . . . 4 8 3 1 2 To Critical Strikes . | . . . . . . . . . . . . . . . . . Average Backups 11 | . 5 6 7 12 11 13 13 10 12 13 14 14 13 12 12 9 Power 1 | . 1 . 1 2 1 2 2 1 1 1 2 2 1 . . . Propulsion 1 | . 1 2 3 1 1 2 2 1 2 2 2 1 . . 1 . Utility 3 | . 2 3 3 3 4 5 5 3 4 4 5 5 3 2 1 3 Weapon 5 | . . . . 4 4 4 4 3 5 5 5 5 6 8 8 4 Tool/Special . | . . . . . . . . . . . . . . . . . Unused Backups 32 | . . . . 9 3 2 1 . . . 3 . 5 . . 9 Power 5 | . . . . 2 1 . 1 . . . 1 . . . . . Propulsion 3 | . . . . 1 . . . . . . 1 . 1 . . . Utility 8 | . . . . 4 . . . . . . 1 . 1 . . 2 Weapon 14 | . . . . 2 1 2 . . . . . . 3 . . 6 Tool/Special 2 | . . . . . 1 . . . . . . . . . . 1 Average Slot Usage (%) 88 | . 85 88 100 96 99 100 91 96 100 100 98 89 87 74 83 82 Engine 2 | . 14 10 . 4 4 1 . 5 5 5 5 5 . . . . Core 1 | . . 3 14 4 2 5 7 5 5 5 5 3 . . . . Reactor 4 | . . . . . . . . . . . . . 7 9 10 7 Treads 5 | . . . . . . . . . . . . . . 16 21 14 Leg 14 | . 28 28 28 30 . . . . . . . . 24 . . 8 Hover 8 | . . . . 2 38 38 38 34 35 35 35 31 3 . . . Device 13 | . . 4 14 12 14 14 15 11 11 11 11 8 14 16 15 14 Storage 6 | . 14 14 14 8 7 7 7 5 5 5 5 5 5 5 5 5 Processor 9 | . . . . 8 14 15 9 13 17 17 17 17 9 5 7 10 Hackware 1 | . . . . . . . . . . . . . 3 5 5 1 Protection 4 | . . . . 4 . . . 4 5 5 4 5 6 3 7 7 Energy Gun 2 | . . . . . . . . . . . . . . 6 9 8 Ballistic Gun 2 | . 28 28 28 2 . . . . . . . . . . . . Ballistic Cannon 4 | . . . . 11 . . 1 . . . . 4 7 3 . . Slashing Weapon 1 | . . . . . 5 7 4 4 5 5 5 1 1 . . . Piercing Weapon 1 | . . . . . 9 7 5 4 5 5 5 . . . . . Peak Build Rating 141 | 6 6 11 11 39 46 53 65 74 67 68 72 74 116 122 124 141 Average Rating 73 | 4 6 7 11 24 44 47 58 64 67 67 69 65 90 111 122 130 On Entrance 52 | . 6 6 11 11 37 45 50 62 67 67 68 71 47 103 122 124 Avg Prop Armor Cover (%) 2 | . . . . . 5 . . . . . . . 3 2 . 2 Naked Turns 3 | . . . . . . . . . . . . . . . . 3 Heaviest Build 99 | 11 11 14 14 42 38 41 39 55 53 53 57 67 80 74 74 99 Greatest Support 240 | 20 20 20 20 45 47 49 49 59 58 58 58 59 210 240 240 240 Greatest Overweight (x) 10 | . . . . 10 1 . . . . . . 1 8 . . 1 Average Overweight (x) . | . . . . . . . . . . . . . . . . . Largest Inventory Capacity 35 | 8 8 8 8 15 15 15 15 15 15 15 15 15 15 35 15 15 Average Capacity 14 | 6 8 8 8 14 14 15 15 15 15 15 15 15 15 15 15 14 Most Carried 15 | 1 6 7 7 15 13 14 15 13 12 14 15 15 15 15 15 15 Average Carried 12 | . 5 6 7 12 11 13 13 9 12 13 14 14 13 13 13 14 Final Capacity 15 | 8 8 8 8 10 15 15 15 15 15 15 15 15 15 15 15 5 Final Carried 15 | 1 6 7 7 10 12 14 14 12 12 14 15 15 15 14 15 5 Scrap Engine Consumption 9 | . . . . . . . 9 . . . . . . . . . Constructs Created 1 | . . . . . . . 1 . . . . . . . . . Class Distribution -------------------- 43% | Scavenger-Mutant 36% | Mutant 13% | Scout 4% | Gladiator Dominant Class ---------------- Mutant | -10/Materials Mutant | -10/Mines Mutant | -10/Subcaves Scavenger-Mutant | -8/Materials Scout | -7/Factory Scout | -7/Storage Mutant | -7/Recycling Scout | -5/Factory Scout | -5/Upper Caves Scout | -5/Upper Caves Scout | -5/Zhirov Mutant | -4/Proximity Caves Scavenger-Mutant | -4/Factory Mutant | -4/Upper Caves Scavenger-Mutant | -4/Upper Caves Mutant | -4/Warlord Resources | -11 -10 -10 -10 -8 -7 -7 -7 -5 -5 -5 -5 -4 -4 -4 -4 -4 ----------- Run | Yrd Mat Min Sub Mat Fac Sto Rec Fac Upp Upp Zhi Pro Fac Upp Upp War Matter Collected 4524 | 199 79 73 . 1451 173 . 148 23 60 27 70 228 1151 495 161 186 Remotely . | . . . . . . . . . . . . . . . . . Salvage Created 4765 | . 79 32 . 1477 252 . . 118 60 . 289 208 1448 474 272 56 Parts 215 | . 10 2 . 82 17 . . 8 . . 4 15 53 10 11 3 Haulers Intercepted 5 | . . . . 3 1 . . 1 . . . . . . . . Recyclers Shooed 4 | . . . . 1 . . . . . . . . 3 . . . Parts Field Recycled . | . . . . . . . . . . . . . . . . . Retrieved Matter . | . . . . . . . . . . . . . . . . . Parts Self-Destructed 21 | . . . 4 . . . . . . . 3 6 . 6 2 . Prevented 17 | . . . . . . . . . . . . 2 . 6 9 . Parts Restored . | . . . . . . . . . . . . . . . . . Kills | -11 -10 -10 -10 -8 -7 -7 -7 -5 -5 -5 -5 -4 -4 -4 -4 -4 ------- Run | Yrd Mat Min Sub Mat Fac Sto Rec Fac Upp Upp Zhi Pro Fac Upp Upp War Combat Hostiles Destroyed 91 | . 4 1 . 39 5 . . . . . . 7 24 5 6 . Melee 12 | . . . . . 5 . . . . . . 2 5 . . . Guns 12 | . 4 1 . 4 . . . . . . . . 2 . 1 . Cannons 46 | . . . . 33 . . . . . . . . 13 . . . AOE 17 | . . . . 2 . . . . . . . 5 3 4 3 . Classes Destroyed 15 | . 2 . . 10 1 . . . 1 . . 1 . . . . Worker 1 | . . . . 1 . . . . . . . . . . . . Builder 3 | . . . . 3 . . . . . . . . . . . . Hauler 5 | . . . . 3 1 . . 1 . . . . . . . . Recycler 4 | . . . . 1 . . . . . . . . 3 . . . Operator 1 | . . . . 1 . . . . . . . . . . . . Drone 2 | . . . . . . . . . . . . 2 . . . . Watcher 7 | . . . . 5 . . . 1 . . . . 1 . . . Swarmer 29 | . 3 . . 9 1 . . . . . . 5 4 4 3 . Grunt 38 | . 1 1 . 23 2 . . . . . . . 11 . . . Brawler 2 | . . . . 1 . . . . . . . . 1 . . . Duelist 1 | . . . . 1 . . . . . . . . . . . . Sentry 7 | . . . . 4 . . . . . . . . 1 1 1 . Hunter 5 | . . . . 1 . . . . . . . . 2 . 2 . Programmer 7 | . . . . . 2 . . . . . . . 5 . . . Decomposer 1 | . . . . . . . . . . . . . . 1 . . Samaritan 4 | . . . . . . . . . 1 . . 1 . 2 . . Thug 1 | . . . . . . . . . . . . . . . . 1 Best Kill Streak 6 | . 3 1 . 6 3 . . 1 . . . 5 5 3 3 . Combat Bots Only 6 | . 3 1 . 6 3 . . . . . . 5 5 3 3 . Max Kills in Single Turn 2 | . 1 1 . 2 1 . . 1 1 . . 2 2 2 1 1 Gunslinging . | . . . . . . . . . . . . . . . . . Exploded 2 | . . . . 2 . . . . . . . 2 2 2 1 . Melee 1 | . . . . . 1 . . . . . . 1 1 . . . Uniques/NPCs Destroyed . | . . . . . . . . . . . . . . . . . Combat | -11 -10 -10 -10 -8 -7 -7 -7 -5 -5 -5 -5 -4 -4 -4 -4 -4 -------- Run | Yrd Mat Min Sub Mat Fac Sto Rec Fac Upp Upp Zhi Pro Fac Upp Upp War Hostile Shots Fired 755 | . 35 3 5 208 12 18 2 . . . . 30 249 39 54 100 Missed 254 | . 12 . 4 58 5 8 2 . . . . 8 90 15 19 33 Hits 501 | . 23 3 1 150 7 10 . . . . . 22 159 24 35 67 Melee 11 | . . . . 5 . . . . . . . . . . . 6 Projectile 490 | . 23 3 1 145 7 10 . . . . . 22 159 24 35 61 Critical Strikes 23 | . . . . 7 . . . . . . . . 8 . 1 7 Actively Blocked 1 | . . . . . . . . . . . . . . . 1 . Part Disruptions 2 | . . . . . 1 . . . . . . . 1 . . . Damage Taken 9302 | . 180 39 17 2455 123 73 . . . . . 552 3472 572 550 1269 Core 1662 | . 47 . . 348 18 23 . . . . . 67 764 . 52 343 Absorbed by Shields 236 | . . . . . . . . . . . . . . . . 236 Redirected to Shielding 163 | . . . . . . . . . . . . . 163 . . . Regen/Repaired (Parts) 297 | . . . . . . . . . . . . . . . . 297 Core Remaining (%) 80 | 100 . . 81 36 . . 94 . . . . 93 . . . . Volleys Fired 270 | . 14 3 3 101 . . . . . . . 16 81 31 17 4 Largest 2 | . 2 2 2 2 . . . . . . . 2 2 2 2 2 Hottest 260 | . 40 40 40 138 . . . . . . . 98 117 140 140 260 Shots Fired 469 | . 28 6 5 198 . . . . . . . 25 140 33 27 7 Gun 137 | . 28 6 5 39 . . . . . . . . 11 19 23 6 Cannon 302 | . . . . 159 . . . . . . . 17 126 . . . Launcher 30 | . . . . . . . . . . . . 8 3 14 4 1 Special . | . . . . . . . . . . . . . . . . . Kinetic 346 | . 28 6 5 164 . . . . . . . 17 126 . . . Thermal 11 | . . . . 10 . . . . . . . . . . . 1 Explosive 9 | . . . . . . . . . . . . . 3 2 4 . Electromagnetic 100 | . . . . 24 . . . . . . . 8 11 31 23 3 Entropic 3 | . . . . . . . . . . . . . . . . 3 Robot Hit Streak 17 | . 3 3 3 17 . . . . . . . 3 8 6 5 8 Robot Miss Streak 8 | . 5 2 2 5 . . . . . . . 4 5 8 2 1 Penetration Max 2 | . . . . . . . . . . . . . 2 . . . Secondary Targets . | . . . . . . . . . . . . . . . . . Shots Hit Robots 334 | . 15 3 3 156 13 3 . 2 1 . 6 3 90 17 16 6 Core Hits 236 | . 8 1 1 142 7 . . 2 1 . 2 8 41 11 9 3 Critical Kills 7 | . . . . . . . . . . . . . 7 . . . Critical Parts Destroyed 7 | . . . . . . . . . . . . . 6 . . 1 Critical Strikes 32 | . . . . 2 1 . . . . . . . 27 . . 2 Burn 1 | . . . . 1 . . . . . . . . . . . . Destroy 13 | . . . . . . . . . . . . . 13 . . . Blast 10 | . . . . . . . . . . . . . 10 . . . Corrupt 1 | . . . . . . . . . . . . . . . . 1 Sever 4 | . . . . . . . . . . . . . 4 . . . Impale 2 | . . . . 1 1 . . . . . . . . . . . Detonate 1 | . . . . . . . . . . . . . . . . 1 Melee Attacks 88 | . . . . 9 25 8 1 11 2 . 6 5 21 . . . Impact . | . . . . . . . . . . . . . . . . . Slashing 49 | . . . . 4 14 6 . 3 . . . 1 21 . . . Piercing 39 | . . . . 5 11 2 1 8 2 . 6 4 . . . . Sneak Attacks 8 | . . . . 1 3 1 . 1 1 . . 1 . . . . Combat Hostiles 1 | . . . . . . . . . . . . 1 . . . . Follow-up Attacks 5 | . . . . . 3 . . . . . . . 2 . . . Damage Inflicted 11900 | . 149 39 28 4027 597 163 . 133 78 . 380 611 3565 856 669 605 Guns 2157 | . 149 39 28 509 . . . . . . . . 287 467 391 287 Cannons 5188 | . . . . 2969 . . . . . . . 35 2184 . . . Explosions 2312 | . . . . 398 . . . . . . . 457 482 389 278 308 Melee 2224 | . . . . 142 597 163 . 133 78 . 380 119 612 . . . Ramming 19 | . . . . 9 . . . . . . . . . . . 10 Kinetic 5161 | . 149 39 28 2726 . . . . . . . 35 2184 . . . Thermal 931 | . . . . 568 . . . . . . . 55 . . . 308 Explosive 993 | . . . . . . . . . . . . . 482 233 278 . Electromagnetic 2368 | . . . . 582 . . . . . . . 402 287 623 391 83 Impact . | . . . . . . . . . . . . . . . . . Slashing 1160 | . . . . 63 372 113 . . . . . . 612 . . . Piercing 1064 | . . . . 79 225 50 . 133 78 . 380 119 . . . . Entropic 204 | . . . . . . . . . . . . . . . . 204 Highest Corruption 6 | . 1 1 1 2 1 1 1 2 2 2 2 2 6 6 6 6 Average Corruption 3 | . 1 1 1 2 1 1 1 2 2 2 2 2 3 6 6 6 Corruption Purged . | . . . . . . . . . . . . . . . . . Corruption Blocked . | . . . . . . . . . . . . . . . . . Effects 112 | . . 4 2 18 3 3 3 . 1 1 2 4 25 23 19 4 Message Errors 20 | . . 2 . 2 1 . . . 1 . . . 6 4 4 . Matter Fused 28 | . . . . 6 . . 1 . . 1 . 2 7 4 7 . Heat Flow Errors 12 | . . . 1 2 . 2 . . . . . 1 1 3 2 . Energy Discharges 18 | . . . . 1 1 1 . . . . 1 . 4 6 2 2 Parts Fused 1 | . . . . . . . . . . . . . . . 1 . Data Loss (minor) 18 | . . 1 . 4 1 . 2 . . . 1 . 4 5 . . Data Loss (major) 5 | . . 1 . 1 . . . . . . . . . . 1 2 Misfires 5 | . . . . 2 . . . . . . . 1 1 . 1 . Alerts 3 | . . . . . . . . . . . . . 1 1 1 . Weapon Failures 2 | . . . 1 . . . . . . . . . 1 . . . Overload Shots . | . . . . . . . . . . . . . . . . . Overflow Damage 704 | . . . . 228 88 15 . . . . 175 92 104 . 2 . Projectiles 101 | . . . . 20 . . . . . . . . 81 . . . Explosions 275 | . . . . 208 . . . . . . . 42 23 . 2 . Melee 328 | . . . . . 88 15 . . . . 175 50 . . . . Knockbacks 82 | . . . . 58 . . . . . . . . 24 . . . Impact . | . . . . . . . . . . . . . . . . . Kinetic 73 | . . . . 50 . . . . . . . . 23 . . . Secondary 9 | . . . . 8 . . . . . . . . 1 . . . Self-Inflicted Damage 647 | . . . . 323 . . . . . . . 136 . 188 . . Shots 21 | . . . . 5 . . . . . . . 7 . 9 . . Rammed . | . . . . . . . . . . . . . . . . . Targets Rammed 3 | . 1 . . 1 . . . . . . . . . . . 1 Kicked 3 | . 1 . . 1 . . . . . . . . . . . 1 Crushed . | . . . . . . . . . . . . . . . . . Highest Temperature 415 | . . 9 200 396 277 193 . . . . . 242 329 270 415 178 Average Temperature 80 | . . 7 125 37 125 120 . . . . . 98 94 28 129 52 Received Heat Transfer 1760 | . . 21 . 1071 18 18 . . . . . 27 493 9 . 103 Effects 2 | . . . . . . . . . . . . 1 . 1 . . Energy Bleed 2 | . . . . . . . . . . . . 1 . 1 . . Siege Activations . | . . . . . . . . . . . . . . . . . Martial Activations . | . . . . . . . . . . . . . . . . . Shielding Activations . | . . . . . . . . . . . . . . . . . Robots Disrupted . | . . . . . . . . . . . . . . . . . Combat Hostiles . | . . . . . . . . . . . . . . . . . Robots Corrupted 7 | . . . . . . . . . . . . . 1 4 2 . Combat Hostiles 5 | . . . . . . . . . . . . . 1 2 2 . Parts Fried 17 | . . . . 5 . . . . . . . 2 . 5 5 . Impact Corruptions . | . . . . . . . . . . . . . . . . . Robots Melted . | . . . . . . . . . . . . . . . . . Combat Hostiles . | . . . . . . . . . . . . . . . . . Parts Melted 2 | . . . . 2 . . . . . . . . . . . . Heat Transferred 944 | . . . . 794 . . . . . . . 50 . . . 100 Parts Sabotaged 9 | . . . . . . . . . . . . . . . . 9 Parts Stolen . | . . . . . . . . . . . . . . . . . Parts Stripped . | . . . . . . . . . . . . . . . . . Power Chain Reactions 3 | . . . . 2 . . . . . . . 1 . . . . Alert | -11 -10 -10 -10 -8 -7 -7 -7 -5 -5 -5 -5 -4 -4 -4 -4 -4 ------- Run | Yrd Mat Min Sub Mat Fac Sto Rec Fac Upp Upp Zhi Pro Fac Upp Upp War Maximum Alert Level 2 | . . . . 2 1 . . 1 . . . . 1 . . . Low Security (%) 70 | 100 100 100 . 38 79 100 100 . . . . . 88 . . . Level 1 17 | . . . . 26 20 . . 100 . . . . 11 . . . Level 2 11 | . . . . 34 . . . . . . . . . . . . Level 3 . | . . . . . . . . . . . . . . . . . Level 4 . | . . . . . . . . . . . . . . . . . Level 5 . | . . . . . . . . . . . . . . . . . High Security . | . . . . . . . . . . . . . . . . . Max Security . | . . . . . . . . . . . . . . . . . Peak Influence 595 | . 84 46 . 595 298 110 62 262 . . . . 346 . . . Initial 263 | . . . . . 263 25 42 262 . . . . 175 . . . Average 174 | . 22 12 . 295 153 47 11 235 . . . . 146 . . . Influence Increases 3808 | . 134 56 . 1297 239 155 79 291 . . 15 165 1102 130 130 15 Destroy 0b10 Robot/C 1860 | . 80 40 . 780 100 . . . . . . 100 540 100 120 . Destroy 0b10 Robot/NC 135 | . . . . 70 5 . . 10 . . 15 10 20 5 . . Destroy Leader 364 | . 10 10 . 186 22 . . 4 . . . 10 102 10 10 . Allied During Kill 14 | . . 6 . 5 . . . . . . . . 3 . . . Successful Hack 126 | . 14 . . 25 59 5 18 . . . . . 5 . . . Select Force Hacks 180 | . 30 . . 60 30 . 60 . . . . . . . . . Disable Machine 165 | . . . . 60 15 30 . . . . . . 60 . . . Destroy Structure 204 | . . . . 81 8 . 1 12 . . . . 102 . . . Advance Influence 400 | . . . . . . . . 250 . . . . 150 . . . Partial Spotted 45 | . . . . . . 30 . . . . . . 15 . . . Lose Combat Pursuer 315 | . . . . 30 . 90 . 15 . . . 45 105 15 . 15 Influence Decreases 3808 | . 134 30 26 718 762 101 159 108 109 81 38 125 840 432 130 15 Entered New Map 698 | . . . 14 . 316 31 68 18 79 21 23 . 15 113 . . Time Decay 2438 | . 134 20 12 548 286 70 49 90 30 60 15 95 595 289 130 15 Lost Part 390 | . . 10 . 150 . . . . . . . 30 170 30 . . Lost Ally 90 | . . . . 20 10 . . . . . . . 60 . . . Purge Threat 192 | . . . . . 150 . 42 . . . . . . . . . Squads Dispatched 20 | . 3 . . 8 2 . . . . . . . 7 . . . Investigation 7 | . 2 . . 4 1 . . . . . . . . . . . Extermination 4 | . . . . . 1 . . . . . . . 3 . . . Reinforcement 9 | . 1 . . 4 . . . . . . . . 4 . . . Assault . | . . . . . . . . . . . . . . . . . Garrison . | . . . . . . . . . . . . . . . . . Intercept . | . . . . . . . . . . . . . . . . . Searches Triggered . | . . . . . . . . . . . . . . . . . Construction Impeded 4 | . . . . 3 . . . . . . . . 1 . . . Haulers Reinforced . | . . . . . . . . . . . . . . . . . Active Scanning Responses . | . . . . . . . . . . . . . . . . . Cargo Convoy Interrupts . | . . . . . . . . . . . . . . . . . Stealth | -11 -10 -10 -10 -8 -7 -7 -7 -5 -5 -5 -5 -4 -4 -4 -4 -4 --------- Run | Yrd Mat Min Sub Mat Fac Sto Rec Fac Upp Upp Zhi Pro Fac Upp Upp War Distress Signals 10 | . . . . 4 . . . 1 . . . . 2 . . 3 Communications Jammed 10 | . . . . . . . . . . . . . 2 . . 8 Distress Signals 10 | . . . . . . . . . . . . . 2 . . 8 Times Spotted 206 | . 7 2 4 50 8 11 3 2 . . . 8 45 5 7 54 Peak Tracking Total 34 | . 4 2 3 7 3 8 2 2 . . . 6 8 3 4 34 Tactical Retreats 15 | . . . . 2 . 2 2 1 . . . 3 3 1 . 1 Traps | -11 -10 -10 -10 -8 -7 -7 -7 -5 -5 -5 -5 -4 -4 -4 -4 -4 ------- Run | Yrd Mat Min Sub Mat Fac Sto Rec Fac Upp Upp Zhi Pro Fac Upp Upp War Traps Triggered 12 | . 2 . . 4 2 . . 1 . . . . 3 . . . Indirectly . | . . . . . . . . . . . . . . . . . Trap Hack Attempts . | . . . . . . . . . . . . . . . . . Triggered . | . . . . . . . . . . . . . . . . . Disarmed . | . . . . . . . . . . . . . . . . . Reprogrammed . | . . . . . . . . . . . . . . . . . Reused . | . . . . . . . . . . . . . . . . . Traps Extracted . | . . . . . . . . . . . . . . . . . Installed . | . . . . . . . . . . . . . . . . . Triggered . | . . . . . . . . . . . . . . . . . Machines | -11 -10 -10 -10 -8 -7 -7 -7 -5 -5 -5 -5 -4 -4 -4 -4 -4 ---------- Run | Yrd Mat Min Sub Mat Fac Sto Rec Fac Upp Upp Zhi Pro Fac Upp Upp War Machines Disabled 12 | . . . . 4 1 2 . . . . . . 4 . . 1 Max in Single Turn 3 | . . . . 3 1 1 . . . . . . 3 . . 1 Machines Repaired . | . . . . . . . . . . . . . . . . . Machines Dismantled . | . . . . . . . . . . . . . . . . . Machines Sabotaged . | . . . . . . . . . . . . . . . . . Overloaded Fab Kills . | . . . . . . . . . . . . . . . . . Hacking | -11 -10 -10 -10 -8 -7 -7 -7 -5 -5 -5 -5 -4 -4 -4 -4 -4 --------- Run | Yrd Mat Min Sub Mat Fac Sto Rec Fac Upp Upp Zhi Pro Fac Upp Upp War Machines Accessed 45 | . 2 . . 6 10 3 10 . . . 4 . 5 . . 5 Terminals 21 | . 1 . . 4 5 3 5 . . . . . 3 . . . Fabricators 2 | . . . . . 1 . . . . . . . 1 . . . Repair Stations . | . . . . . . . . . . . . . . . . . Recycling Units 9 | . 1 . . 2 2 . 3 . . . . . 1 . . . Scanalyzers 1 | . . . . . 1 . . . . . . . . . . . Garrison Access 1 | . . . . . 1 . . . . . . . . . . . Total Hacks 125 | . 4 . . 16 22 6 42 . . . 17 . 10 . . 8 Successful 78 | . 2 . . 6 9 2 31 . . . 17 . 3 . . 8 Failed 47 | . 2 . . 10 13 4 11 . . . . . 7 . . . Catastrophic 12 | . 1 . . 1 1 2 4 . . . . . 3 . . . Database Lockouts . | . . . . . . . . . . . . . . . . . Manual 55 | . 3 . . 12 14 3 13 . . . 1 . 8 . . 1 Terminals 49 | . 1 . . 13 14 6 9 . . . . . 6 . . . Fabricators 3 | . . . . . 1 . . . . . . . 2 . . . Repair Stations . | . . . . . . . . . . . . . . . . . Recycling Units 16 | . 3 . . 3 2 . 6 . . . . . 2 . . . Scanalyzers 3 | . . . . . 3 . . . . . . . . . . . Garrison Access 2 | . . . . . 2 . . . . . . . . . . . Terminal Hacks 58 | . . . . 1 3 . 29 . . . 17 . . . . 8 Record 36 | . . . . . . . 25 . . . 5 . . . . 6 Part Schematic 4 | . . . . . . . . . . . 4 . . . . . Robot Analysis 5 | . . . . . 1 . . . . . 4 . . . . . Prototype ID Bank 4 | . . . . . . . . . . . 4 . . . . . Open Door 2 | . . . . . . . . . . . . . . . . 2 Branch Access Points 2 | . . . . 1 1 . . . . . . . . . . . Unreport Threat 3 | . . . . . 1 . 2 . . . . . . . . . Release Object 2 | . . . . . . . 2 . . . . . . . . . Fabricator Hacks . | . . . . . . . . . . . . . . . . . Repair Station Hacks . | . . . . . . . . . . . . . . . . . Recycling Unit Hacks 2 | . . . . 1 . . . . . . . . 1 . . . Retrieve Components 2 | . . . . 1 . . . . . . . . 1 . . . Scanalyzer 3 | . . . . . 3 . . . . . . . . . . . Insert Component 1 | . . . . . 1 . . . . . . . . . . . Analyze 1 | . . . . . 1 . . . . . . . . . . . Retrieve Study 1 | . . . . . 1 . . . . . . . . . . . Garrison Access Hacks . | . . . . . . . . . . . . . . . . . Unauthorized Hacks 15 | . 2 . . 4 3 2 2 . . . . . 2 . . . Terminals 8 | . 1 . . 2 2 2 . . . . . . 1 . . . Assimilate 1 | . . . . . 1 . . . . . . . . . . . Botnet 7 | . 1 . . 2 1 2 . . . . . . 1 . . . Fabricators 1 | . . . . . . . . . . . . . 1 . . . Liberate 1 | . . . . . . . . . . . . . 1 . . . Repair Stations . | . . . . . . . . . . . . . . . . . Recycling Units 6 | . 1 . . 2 1 . 2 . . . . . . . . . Tunnel 6 | . 1 . . 2 1 . 2 . . . . . . . . . Scanalyzers . | . . . . . . . . . . . . . . . . . Garrison Access . | . . . . . . . . . . . . . . . . . Data Cores Recovered 1 | . . . . 1 . . . . . . . . . . . . Used 1 | . . . . 1 . . . . . . . . . . . . Hacking Detections 27 | . . . . 4 9 3 6 . . . . . 5 . . . Full Trace Events 4 | . . . . 1 . . 3 . . . . . . . . . Feedback Events . | . . . . . . . . . . . . . . . . . Feedback Blocked . | . . . . . . . . . . . . . . . . . Robot Schematics Acquired . | . . . . . . . . . . . . . . . . . Robots Built . | . . . . . . . . . . . . . . . . . Authchips . | . . . . . . . . . . . . . . . . . Time . | . . . . . . . . . . . . . . . . . Total Robot Build Rating . | . . . . . . . . . . . . . . . . . Part Schematics Acquired 5 | . . . . . 1 . . . . . 4 . . . . . Parts Built . | . . . . . . . . . . . . . . . . . Authchips . | . . . . . . . . . . . . . . . . . Time . | . . . . . . . . . . . . . . . . . Total Part Build Rating . | . . . . . . . . . . . . . . . . . Part Studies Acquired 1 | . . . . . 1 . . . . . . . . . . . Parts Repaired . | . . . . . . . . . . . . . . . . . Time . | . . . . . . . . . . . . . . . . . Parts Recycled . | . . . . . . . . . . . . . . . . . Recycled Matter . | . . . . . . . . . . . . . . . . . Retrieved Matter . | . . . . . . . . . . . . . . . . . Retrieved Components 16 | . . . . 10 . . . . . . . . 6 . . . Parts Scanalyzed 1 | . . . . . 1 . . . . . . . . . . . Part Schematics Acquired 1 | . . . . . 1 . . . . . . . . . . . Parts Damaged . | . . . . . . . . . . . . . . . . . Bothacking | -11 -10 -10 -10 -8 -7 -7 -7 -5 -5 -5 -5 -4 -4 -4 -4 -4 ------------ Run | Yrd Mat Min Sub Mat Fac Sto Rec Fac Upp Upp Zhi Pro Fac Upp Upp War Used RIF Installer . | . . . . . . . . . . . . . . . . . Robots Hacked . | . . . . . . . . . . . . . . . . . Non-combat . | . . . . . . . . . . . . . . . . . Combat . | . . . . . . . . . . . . . . . . . Robot Hacks Applied . | . . . . . . . . . . . . . . . . . Relay Couplers Released . | . . . . . . . . . . . . . . . . . Fabnet Peak Effective % . | . . . . . . . . . . . . . . . . . Robots Rewired . | . . . . . . . . . . . . . . . . . Allies Hacked . | . . . . . . . . . . . . . . . . . Hacks Repelled . | . . . . . . . . . . . . . . . . . Allies | -11 -10 -10 -10 -8 -7 -7 -7 -5 -5 -5 -5 -4 -4 -4 -4 -4 -------- Run | Yrd Mat Min Sub Mat Fac Sto Rec Fac Upp Upp Zhi Pro Fac Upp Upp War Total Allies 6 | . . 2 . . 1 . . . . . . . 3 . . . Largest Group 3 | . . 2 2 2 1 . . . . . . . 3 . . . Highest-Rated Group 141 | . . 41 41 41 26 . . . . . . . 141 . . . Highest-Rated Ally 47 | . . 31 31 31 26 . . . . . . . 47 . . . Total Orders . | . . . . . . . . . . . . . . . . . Ally Attacks 37 | . . 2 3 7 . . . . . . . . 25 . . . Total Damage 671 | . . 43 . 65 . . . . . . . . 563 . . . Kills 4 | . . 1 . . . . . . . . . . 3 . . . Allies Corrupted . | . . . . . . . . . . . . . . . . . Allies Melted 2 | . . . . . . . . . . . . . . . . 2 Intel | -11 -10 -10 -10 -8 -7 -7 -7 -5 -5 -5 -5 -4 -4 -4 -4 -4 ------- Run | Yrd Mat Min Sub Mat Fac Sto Rec Fac Upp Upp Zhi Pro Fac Upp Upp War Active Infowar (turns) 8200 | . . . . 1292 629 177 356 180 74 123 90 301 1885 870 751 1472 Sensors 1802 | . . . . . 617 176 356 180 74 123 90 186 . . . . Structural 4586 | . . . . 1292 629 161 114 178 74 123 90 301 1502 122 . . T.N.C. 18 | . . . . . . . . 18 . . . . . . . . Jamming 4141 | . . . . . . . . . . . . . 1048 870 751 1472 Robot Analysis Total 5 | . . . . . 1 . . . . . 4 . . . . . Derelict Logs Recovered 7 | . . 1 1 . . . . . 1 2 . . . 1 1 . Drone Launches . | . . . . . . . . . . . . . . . . . Drone Recoveries . | . . . . . . . . . . . . . . . . . Exploration | -11 -10 -10 -10 -8 -7 -7 -7 -5 -5 -5 -5 -4 -4 -4 -4 -4 ------------- Run | Yrd Mat Min Sub Mat Fac Sto Rec Fac Upp Upp Zhi Pro Fac Upp Upp War Turns Passed 9762 | 65 527 129 97 2033 629 177 356 180 74 123 90 301 1885 870 751 1475 Spaces Moved 7347 | 50 139 93 72 1104 863 284 769 317 197 323 168 357 987 433 396 795 Core 21 | 6 . . . 2 . . . . . . . . 7 . . 6 Treads 1483 | . . . . . . . . . . . . . 20 433 396 634 Legs 2213 | 44 139 93 72 920 . . . . . . . . 790 . . 155 Wheels . | . . . . . . . . . . . . . . . . . Hover 3630 | . . . . 182 863 284 769 317 197 323 168 357 170 . . . Flight . | . . . . . . . . . . . . . . . . . Fastest Speed 35 | 50 120 120 120 48 44 42 42 35 35 35 35 35 45 175 175 50 Average Speed 95 | 111 120 120 120 122 48 43 42 36 35 35 35 49 108 178 175 165 Slowest Speed 550 | 120 120 120 120 550 108 48 42 38 35 35 35 105 450 180 175 180 Overloaded Moves . | . . . . . . . . . . . . . . . . . Propulsion Burnouts . | . . . . . . . . . . . . . . . . . Robots Hopped . | . . . . . . . . . . . . . . . . . Potential Cave-ins 6 | . . . . . . . . . . . . 3 3 . . . Cave-ins Triggered . | . . . . . . . . . . . . . . . . . Exploration Rate (%) 45 | 4 28 30 9 60 29 44 95 10 43 56 62 62 33 67 61 88 Regions Visited 16 Branch Regions 11 Pre-discovered Areas 11 | . 1 . . 2 1 . 2 . . 1 3 . . 1 . . Known Exits Taken 11 | . . . . . 1 1 1 1 1 1 1 1 1 1 1 . Unknown Exits Taken 5 | 1 1 1 1 1 . . . . . . . . . . . . Scrap Searched 9 | . . . . . . . . . . 3 . 1 . 2 3 . Spaces Dug 51 | . . . . 5 8 . 1 6 1 . . 10 20 . . . Terrain Destroyed 244 | . . . . 102 8 . 1 6 1 . . 19 49 22 25 11 Melee 23 | . . . . 4 8 . 1 6 1 . . 1 2 . . . Projectile 64 | . . . . 11 . . . . . . . 13 40 . . . AOE 157 | . . . . 87 . . . . . . . 5 7 22 25 11 Terrain Rammed . | . . . . . . . . . . . . . . . . . Walls Destroyed . | . . . . . . . . . . . . . . . . . Machines Disabled . | . . . . . . . . . . . . . . . . . Actions | -11 -10 -10 -10 -8 -7 -7 -7 -5 -5 -5 -5 -4 -4 -4 -4 -4 --------- Run | Yrd Mat Min Sub Mat Fac Sto Rec Fac Upp Upp Zhi Pro Fac Upp Upp War Total 9496 | 56 474 104 77 1574 1041 325 802 367 198 332 191 448 1627 496 429 955 Wait 1367 | . 316 4 3 218 124 12 23 25 . 8 . 60 459 9 6 100 Move 7331 | 49 138 92 71 1103 862 283 768 316 196 322 167 356 986 432 395 795 Hop . | . . . . . . . . . . . . . . . . . Pick Up 79 | 1 5 . . 27 8 3 1 3 . 2 3 . 15 2 3 6 Fast Attach 110 | 6 . 2 . 35 7 6 . 3 . . 6 . 22 6 1 16 Attach 53 | . . 1 . 17 3 . 1 7 . . . 3 11 5 3 2 Detach 29 | . . 1 . 4 2 2 3 2 . . 2 3 4 2 2 2 Swap 51 | . . 1 . 16 3 5 1 1 . . . 5 11 5 1 2 Drop 128 | . . . . 43 13 7 4 2 . . 7 1 19 4 1 27 Fire 270 | . 14 3 3 101 . . . . . . . 16 81 31 17 4 Melee 75 | . . . . 9 19 7 1 8 2 . 6 4 19 . . . Ram . | . . . . . . . . . . . . . . . . . Kick 3 | . 1 . . 1 . . . . . . . . . . . 1 Crush . | . . . . . . . . . . . . . . . . . Escape Stasis . | . . . . . . . . . . . . . . . . . Rewire . | . . . . . . . . . . . . . . . . . Trap . | . . . . . . . . . . . . . . . . . Miscellaneous . | . . . . . . . . . . . . . . . . . Route ------- -11/Scrapyard -10/Materials -10/Mines -10/Subcaves (discovered 2 exits: *Mat / Rec) -8/Materials (discovered 2 exits: *Fac x2) -7/Factory (discovered 3 exits: *Sto / Low x2) -7/Storage -7/Recycling -5/Factory -5/Upper Caves -5/Upper Caves -5/Zhirov -4/Proximity Caves -4/Factory -4/Upper Caves -4/Upper Caves -4/Warlord (discovered 1 exit: [*Pro]) History --------- Turn | Location | Event 3 | -11/Scrapyard | Discovered new exit (range 15) 66 | -11/Scrapyard | Entered Materials 314 | -10/Materials | Build established: Mutant 550 | -10/Materials | Discovered new exit (range 8) 593 | -10/Materials | Entered Mines 716 | -10/Mines | Discovered new exit (range 4) 722 | -10/Mines | Entered Subcaves 722 | -10/Subcaves | Accompanied by 2 allies 723 | -10/Subcaves | Approached by a straggling Scientist 723 | -10/Subcaves | Identified exit to Recycling 727 | -10/Subcaves | Led the pair of lost Derelicts to an unsafe place 739 | -10/Subcaves | Learned Materials emergency access door positions 799 | -10/Subcaves | Discovered new exit (range 15) 819 | -10/Subcaves | Entered Materials 819 | -8/Materials | Accompanied by 2 allies 819 | -8/Materials | Evolved 4 slots: Propulsion x2, Utility x2 1145 | -8/Materials | Build established: Scavenger-Mutant 1239 | -8/Materials | Discovered new exit (range 16) 1340 | -8/Materials | Lost 6 parts (2p4n) 2052 | -8/Materials | Discovered new exit (range 15) 2330 | -8/Materials | Core integrity fell below 50% 2852 | -8/Materials | Entered Factory 2852 | -7/Factory | Evolved 2 slots: Propulsion x1, Utility x1 3019 | -7/Factory | Identified exit to Storage 3019 | -7/Factory | Identified exit to Lower Caves 3138 | -7/Factory | Build established: Scout 3481 | -7/Factory | Entered Storage 3656 | -7/Storage | Used back door to open Recycling access 3656 | -7/Storage | Discovered exit to Recycling (range 5) 3658 | -7/Storage | Entered Recycling 3756 | -7/Recycling | Found Prototype Device 3758 | -7/Recycling | Entered Scraplab 3772 | -7/Recycling | Identified Scrap Engine 3824 | -7/Recycling | Discovered new exit (range 16) 4012 | -7/Recycling | Identified exit to Factory 4014 | -7/Recycling | Entered Factory 4014 | -5/Factory | Evolved 4 slots: Power x1, Propulsion x1, Utility x2 4113 | -5/Factory | Discovered new exit (range 13) 4149 | -5/Factory | Identified exit to Upper Caves 4194 | -5/Factory | Entered Upper Caves 4209 | -5/Upper Caves | Encountered a Warlord checkpoint 4219 | -5/Upper Caves | Learned 8 Factory zone layouts 4263 | -5/Upper Caves | Discovered new exit (range 15) 4268 | -5/Upper Caves | Identified exit to Upper Caves 4268 | -5/Upper Caves | Entered another Upper Caves area 4269 | -5/Upper Caves | Learned location of Armory (-3) 4271 | -5/Upper Caves | Learned Factory machine intel 4382 | -5/Upper Caves | Discovered new exit (range 11) 4385 | -5/Upper Caves | Identified exit to Zhirov 4391 | -5/Upper Caves | Entered Zhirov 4391 | -5/Zhirov | Discovered new exit (range 3) 4392 | -5/Zhirov | Identified exit to Proximity Caves 4398 | -5/Zhirov | Met Zhirov 4407 | -5/Zhirov | Learned location of Quarantine (-3) 4407 | -5/Zhirov | Learned location of Testing (-2) 4407 | -5/Zhirov | Learned location of Command (-1) 4414 | -5/Zhirov | Zhirov requested help retrieving the SGEMP Prototype 4420 | -5/Zhirov | Found Alien Artifact 4420 | -5/Zhirov | Identified Integrated Reactor 4420 | -5/Zhirov | Installed Integrated Reactor, increased core energy generation (+10) 4427 | -5/Zhirov | Found Alien Artifact 4481 | -5/Zhirov | Entered Proximity Caves 4485 | -4/Proximity Caves | Spotter reported a threat 4495 | -4/Proximity Caves | Spotted B-86 Titan 4698 | -4/Proximity Caves | Lost 4 parts (3n1u) 4705 | -4/Proximity Caves | Attracted the attention of an 0b10 checkpoint 4778 | -4/Proximity Caves | Discovered new exit (range 8) 4781 | -4/Proximity Caves | Identified exit to Factory 4782 | -4/Proximity Caves | Entered Factory 4782 | -4/Factory | Evolved 2 slots: Propulsion x1, Utility x1 4783 | -4/Factory | Identified exit to Upper Caves 4784 | -4/Factory | Loaded intel: 258 machine locations 5099 | -4/Factory | Lost 8 parts (1p4n3u) 5221 | -4/Factory | Core integrity fell below 50% 5427 | -4/Factory | Build established: Scavenger-Mutant 6361 | -4/Factory | Lost 3 parts (1p1n1u) 6667 | -4/Factory | Entered Upper Caves 6828 | -4/Upper Caves | Lost 3 parts (1n2u) 7092 | -4/Upper Caves | Build established: Mutant 7340 | -4/Upper Caves | Entered a destroyed Warlord outpost 7424 | -4/Upper Caves | Attracted the attention of an 0b10 checkpoint 7512 | -4/Upper Caves | Discovered new exit (range 15) 7535 | -4/Upper Caves | Identified exit to Upper Caves 7537 | -4/Upper Caves | Entered another Upper Caves area 7566 | -4/Upper Caves | Build established: Scavenger-Mutant 7569 | -4/Upper Caves | Attracted the attention of an 0b10 checkpoint 8050 | -4/Upper Caves | Learned 4 Research zone layouts 8241 | -4/Upper Caves | Build established: Mutant 8283 | -4/Upper Caves | Discovered new exit (range 4) 8286 | -4/Upper Caves | Identified exit to Warlord 8288 | -4/Upper Caves | Entered Warlord 8339 | -4/Warlord | Discovered new exit (range 8) 8387 | -4/Warlord | System corruption cleaned by Quarantine Array 8635 | -4/Warlord | Found Prototype Device 8757 | -4/Warlord | Received a Watcher feed algorithm from an ecstatic Tinkerer 8758 | -4/Warlord | Ran a Watcher feed algorithm 8878 | -4/Warlord | Found Prototype Reactor 8878 | -4/Warlord | Identified Vortex Chain Reactor 9027 | -4/Warlord | Met Warlord 9052 | -4/Warlord | Warlord's base attacked by MAIN.C 9183 | -4/Warlord | Learned Research stockpile data 9185 | -4/Warlord | Learned 4 Access zone layouts 9185 | -4/Warlord | Learned 4 Testing zone layouts 9189 | -4/Warlord | Learned Armory recycling unit intel 9189 | -4/Warlord | Learned Armory scanalyzer intel 9258 | -4/Warlord | Found Prototype Energy Gun 9258 | -4/Warlord | Identified Vortex Rifle 9267 | -4/Warlord | Found Prototype Energy Gun 9267 | -4/Warlord | Identified Vortex Shotgun 9271 | -4/Warlord | Found Vortex Shotgun 9277 | -4/Warlord | Found Vortex Rifle 9402 | -4/Warlord | Warlord forces counterattacked 9474 | -4/Warlord | Spotted Executioner 9505 | -4/Warlord | P-70 Sage assimilated allied AR-23G(g) 9512 | -4/Warlord | P-80 Master assimilated allied F7-R6Q(g) 9579 | -4/Warlord | Lost 20 allies 9623 | -4/Warlord | Opened side exit 9727 | -4/Warlord | Warlord base infiltrated, sounded retreat 9738 | -4/Warlord | Spotted Striker 9742 | -4/Warlord | Spotted Executioner 9749 | -4/Warlord | Spotted Executioner 9759 | -4/Warlord | Spotted Executioner 9760 | -4/Warlord | Spotted Striker 9760 | -4/Warlord | Released all parts (6) 9762 | -4/Warlord | Core integrity fell below 20% 9763 | -4/Warlord | Destroyed by Striker with Compact Linear Accelerator Last Messages --------------- 09747_ Hrd. Medium Armor Plating blown off. 09747_ Adv. Coolant Injector blown off. 09747_ Carbon-fiber Leg blown off. 09747_ Acquired Enh. Biometal Leg. 09751_ Myomer Leg destroyed. 09751_ Critical hit (Blast). 09751_ Knocked back. 09752_ ANNOUNCEMENT: Detected 1 Demolisher squad, 1 Mixed squad, 2 Grunt squads, with prototype support. 09755_ Dropped Adv. Remote Shield. 09756_ I-47 Archangel distress signal jammed. 09760_ S-27 Virus destroyed. 09760_ Released Enh. Biometal Leg. 09760_ Released Vortex Chain Reactor. 09760_ Released Imp. Targeting Computer. 09760_ Released Lrg. Storage Unit. 09760_ Released Imp. Transmission Jammer. 09760_ Released Enh. Biometal Leg. 09761_ Knocked back. 09763_ Penetrated by Slug. Map ----- +----------------------------------------------------+ | | | | | | | | | | | | | | | | | ???????????????????????????????? | | ???????????????????????????????? | | ???????????????????????????????? | | ???????????????????????????????? | | ???????????????????????????????? | | ???????????????????????????????? | | ???????????????????????????????? | | ???????????????????????????????? | | ???????????????????????????????? | | ???????????????????????????????? | | ???????????????????????????????? | | ???????????????????????????????? | | ??????????????????????#####????? | | ?????????????????????## ###??? | | ????????????????????## Em#### | | ???????????????????## < b i | | ???????????????????# g dd | | ???????????????????# g @ l#??? | | ???????????????????# Kg##??? | | ??????????? ???????## s b#???? | | ???????????? ???????## xs ##???? | | ????????????# ?????### sK=#????? | | ????????????# ##### !s#####?? | | ????????????# *[ ""#?? | | ????????????## #"" ## ##? | | ??????????????# ## #? | | ??????????????### "" g%* #? | | ????????????????# *%! =! ##? | | ???????? ?????## "# #?? | | ##?##### ??????#; # " %##? | | [##!=* ?????#"" #### #? | | !*#=|!%! ##???#### "##!=##? | | =[%%==]!=! % ????## "! ##?? | | %=!%!%[%[]/%= = ####"" %="#??? | | %=[%[[=%%=!=%!% ##" [###?? | | =%%[[*!*!!%%[!=! "" %="#?? | | [*%**%%=!%!=%[[ ""##/!=##? | | %%!=!%[%=!==!%!"% "## "%=" ## | | !=%[=![*=!=*!" "# #?# " "" # | | !"&&""""&=* ##### #?##" ### | | !"############?# # "### " "#? | | ###????????????#"" # # "#? | +----------------------------------------------------+ Best States ------------- Heat Dissipation 62 Coolant Potential 100 Energy Generation 65 Energy Capacity 700 Matter Stores 300 Matter Capacity 300 Sight Range 16 Robot Scan Range 15 Terrain Scan Density 85 Jamming Range 14 Armor Coverage 450 Weapon Shielding 90 Evasion (%) 67 Targeting Accuracy 8 Melee Accuracy 15 Armor Integrity Analysis 30 Recoil Reduction 13 Particle Charging 20 Force Boost 20 Defensive Hacking 14 Item Schematics ----------------- Med. Storage Unit | -7/Factory | Scanalyzed Assault Drone Bay | -5/Zhirov | Free Exp. Heat Sink | -5/Zhirov | Free Exp. Optical Array | -5/Zhirov | Free Imp. Arc Thrower | -5/Zhirov | Free Robot Schematics ------------------ None Fabricated ------------ Nothing Repaired ---------- Nothing Studied --------- Gravmag System | -7/Factory | Hacked Alien Tech Used ----------------- Integrated Reactor Achievements -------------- Not So Scrappy Scrappetite Challenges ------------ None Game ------ Seed BehemothAerolevScythe Manual? 0 Play Time 01:56:53 Cumulative 394.5 hours Start 2025.11.09 @ 17:09:30 End 2025.11.09 @ 19:14:31 Sessions 1 Manual Loads 0 Difficulty Rogue Special Mode None Game No. 171 Rogue 100 Adventurer 68 Explorer 3 Win Type - Total 33 Types 19/2/3/4/3/0/0/0/0/2 Lore% 78 Gallery% 76 Achievement% 54 Wizard Run 0 Options --------- Layout 0 ASCII 0 Keyboard 0 Movement Numpad Keybinds 0 Fullscreen 1 Font 24/Smallcaps Map View 76x50 Zoom Use 0% Tactical HUD 1 Map Filters NONE Filters NONE Steam 1 RUN: 9d74cdcc-2c31-4571-98d7-4c8d7c00b3ba